fUST/lending_fUST_20241229
["ID","MTS","AMOUNT","RATE_DAILY","PERIOD"]
[346963438,1735433442117,-151.0,0.000193,2]
[346963439,1735433442127,-226.301819,0.000193,2]
[346963440,1735433442136,-226.301819,0.000193,2]
[346963441,1735433442146,-151.0,0.000193,2]
[346963442,1735433442155,-680.147319,0.000193,2]
[346963443,1735433442165,-680.147319,0.000193,2]
[346963444,1735433442174,-151.0,0.000193,2]
[346963445,1735433442184,-151.0,0.000193,2]
[346963446,1735433442194,-500.0,0.000193,2]
[346963447,1735433442203,-151.0,0.000193,2]
[346963448,1735433442212,-7021.91,0.00019301,2]
[346963449,1735433442221,-500.0,0.00019301,2]
[346963450,1735433442231,-151.0,0.00019301,2]
[346963451,1735433442240,-151.0,0.00019301,2]
[346963452,1735433442250,-294.31552,0.00019301,2]
[346963453,1735433442259,-6571.09,0.00019301,2]
[346963454,1735433442268,-4272.27,0.00019301,2]
[346963455,1735433442278,-916.51,0.00019301,2]
[346963456,1735433442287,-500.0,0.00019301,2]
[346963457,1735433442296,-151.0,0.00019507,2]
[346963458,1735433442306,-153.0,0.00019507,2]
[346963459,1735433442315,-153.0,0.00019507,2]
[346963460,1735433442324,-153.0,0.00019507,2]
[346963461,1735433442333,-153.0,0.00019507,2]
[346963462,1735433442342,-153.0,0.00019507,2]
[346963463,1735433442352,-153.0,0.00019507,2]
[346963464,1735433442361,-153.0,0.00019507,2]
[346963465,1735433442370,-153.0,0.00019507,2]
[346963466,1735433442380,-153.0,0.00019507,2]
[346963467,1735433442389,-153.0,0.00019507,2]
[346963468,1735433442398,-153.0,0.00019507,2]
[346963469,1735433442407,-153.0,0.00019507,2]
[346963470,1735433442416,-153.0,0.00019507,2]
[346963471,1735433442426,-153.0,0.00019507,2]
[346963472,1735433442435,-153.0,0.00019507,2]
[346963473,1735433442445,-153.0,0.00019507,2]
[346963474,1735433442454,-153.0,0.00019507,2]
[346963475,1735433442463,-153.0,0.00019507,2]
[346963476,1735433442473,-153.0,0.00019507,2]
[346963477,1735433442482,-153.0,0.00019507,2]
[346963478,1735433442491,-153.0,0.00019507,2]
[346963479,1735433442500,-153.0,0.00019507,2]
[346963480,1735433442509,-153.0,0.00019507,2]
[346963481,1735433442519,-153.0,0.00019507,2]
[346963482,1735433442528,-153.0,0.00019507,2]
[346963483,1735433442538,-153.0,0.00019507,2]
[346963484,1735433442547,-153.0,0.00019507,2]
[346963485,1735433442559,-153.0,0.00019507,2]
[346963486,1735433442568,-153.0,0.00019507,2]
[346963487,1735433442578,-153.0,0.00019507,2]
[346963488,1735433442587,-153.0,0.00019507,2]
[346963489,1735433442596,-153.0,0.00019507,2]
[346963490,1735433442606,-153.0,0.00019507,2]
[346963491,1735433442615,-153.0,0.00019507,2]
[346963492,1735433442624,-153.0,0.00019507,2]
[346963493,1735433442633,-153.0,0.00019507,2]
[346963494,1735433442643,-153.0,0.00019507,2]
[346963495,1735433442652,-153.0,0.00019507,2]
[346963496,1735433442661,-153.0,0.00019507,2]
[346963497,1735433442671,-153.0,0.00019507,2]
[346963498,1735433442681,-153.0,0.00019507,2]
[346963500,1735433442691,-153.0,0.00019507,2]
[346963501,1735433442700,-153.0,0.00019507,2]
[346963503,1735433442710,-153.0,0.00019507,2]
[346963504,1735433442719,-153.0,0.00019507,2]
[346963505,1735433442729,-153.0,0.00019507,2]
[346963506,1735433442738,-153.0,0.00019507,2]
[346963508,1735433442748,-153.0,0.00019507,2]
[346963510,1735433442757,-153.0,0.00019507,2]
[346963511,1735433442766,-153.0,0.00019507,2]
[346963513,1735433442776,-153.0,0.00019507,2]
[346963515,1735433442785,-153.0,0.00019507,2]
[346963516,1735433442794,-153.0,0.00019507,2]
[346963517,1735433442803,-153.0,0.00019507,2]
[346963519,1735433442811,-153.0,0.00019507,2]
[346963521,1735433442821,-153.0,0.00019507,2]
[346963522,1735433442830,-153.0,0.00019507,2]
[346963523,1735433442840,-153.0,0.00019507,2]
[346963524,1735433442849,-153.0,0.00019507,2]
[346963525,1735433442858,-153.0,0.00019507,2]
[346963526,1735433442867,-153.0,0.00019507,2]
[346963527,1735433442876,-153.0,0.00019507,2]
[346963528,1735433442885,-153.0,0.00019507,2]
[346963529,1735433442894,-153.0,0.00019507,2]
[346963531,1735433442903,-153.0,0.00019507,2]
[346963533,1735433442913,-153.0,0.00019507,2]
[346963535,1735433442922,-153.0,0.00019507,2]
[346963536,1735433442931,-153.0,0.00019507,2]
[346963538,1735433442941,-153.0,0.00019507,2]
[346963540,1735433442950,-153.0,0.00019507,2]
[346963542,1735433442959,-153.0,0.00019507,2]
[346963543,1735433442969,-153.0,0.00019507,2]
[346963545,1735433442978,-153.0,0.00019507,2]
[346963546,1735433442987,-153.0,0.00019507,2]
[346963547,1735433442996,-153.0,0.00019507,2]
[346963548,1735433443005,-153.0,0.00019507,2]
[346963549,1735433443014,-153.0,0.00019507,2]
[346963550,1735433443023,-153.0,0.00019507,2]
[346963557,1735433443106,-153.0,0.00019507,2]
[346963558,1735433443115,-153.0,0.00019507,2]
[346963559,1735433443124,-153.0,0.00019507,2]
[346963560,1735433443133,-153.0,0.00019507,2]
[346963562,1735433443143,-153.0,0.00019507,2]
[346963563,1735433443152,-153.0,0.00019507,2]
[346963564,1735433443161,-153.0,0.00019507,2]
[346963565,1735433443170,-153.0,0.00019507,2]
[346963566,1735433443179,-153.0,0.00019507,2]
[346963567,1735433443188,-153.0,0.00019507,2]
[346963568,1735433443197,-153.0,0.00019507,2]
[346963569,1735433443207,-153.0,0.00019507,2]
[346963570,1735433443216,-153.0,0.00019507,2]
[346963571,1735433443225,-153.0,0.00019507,2]
[346963572,1735433443234,-153.0,0.00019507,2]
[346963573,1735433443243,-153.0,0.00019507,2]
[346963575,1735433443253,-153.0,0.00019507,2]
[346963577,1735433443262,-153.0,0.00019507,2]
[346963578,1735433443271,-153.0,0.00019507,2]
[346963579,1735433443280,-153.0,0.00019507,2]
[346963580,1735433443290,-153.0,0.00019507,2]
[346963581,1735433443299,-153.0,0.00019507,2]
[346963582,1735433443308,-153.0,0.00019507,2]
[346963583,1735433443317,-153.0,0.00019507,2]
[346963584,1735433443326,-153.0,0.00019507,2]
[346963585,1735433443335,-153.0,0.00019507,2]
[346963586,1735433443344,-153.0,0.00019507,2]
[346963587,1735433443353,-153.0,0.00019507,2]
[346963588,1735433443363,-153.0,0.00019507,2]
[346963589,1735433443372,-153.0,0.00019507,2]
[346963590,1735433443382,-153.0,0.00019507,2]
[346963591,1735433443391,-153.0,0.00019507,2]
[346963592,1735433443400,-153.0,0.00019507,2]
[346963593,1735433443410,-153.0,0.00019507,2]
[346963595,1735433443419,-153.0,0.00019507,2]
[346963597,1735433443429,-153.0,0.00019507,2]
[346963599,1735433443439,-153.0,0.00019507,2]
[346963601,1735433443449,-571.8078724,0.00019541,2]
[346963603,1735433443457,-150.0,0.00019569,2]
[346963604,1735433443467,-529.0,0.00019569,2]
[346963605,1735433443476,-2352.0,0.00019569,2]
[346963606,1735433443486,-1684.72,0.00019572,2]
[346963607,1735433443496,-500.0,0.00019572,2]
[346963608,1735433443505,-583.58,0.00019572,2]
[346963609,1735433443514,-500.0,0.00019572,2]
[346963610,1735433443524,-500.0,0.00019572,2]
[346963611,1735433443533,-500.0,0.00019572,2]
[346963612,1735433443542,-981.54,0.00019572,2]
[346963613,1735433443551,-500.0,0.00019572,2]
[346963614,1735433443565,-759.28,0.00019572,2]
[346963615,1735433443575,-500.0,0.00019572,2]
[346963616,1735433443584,-500.0,0.00019572,2]
[346963617,1735433443594,-508.47,0.00019572,2]
[346963618,1735433443604,-151.0,0.00019573,2]
[346963619,1735433443613,-151.0,0.00019573,2]
[346963620,1735433443624,-151.0,0.00019573,2]
[346963621,1735433443636,-151.0,0.00019573,2]
[346963622,1735433443645,-500.0,0.00019573,2]
[346963623,1735433443655,-500.0,0.00019573,2]
[346963624,1735433443664,-500.0,0.00019573,2]
[346963625,1735433443675,-215.38,0.00019573,2]
[346963626,1735433443685,-500.0,0.00019573,2]
[346963627,1735433443695,-500.0,0.00019573,2]
[346963628,1735433443705,-500.0,0.00019573,2]
[346963629,1735433443715,-500.0,0.00019573,2]
[346963630,1735433443724,-500.0,0.00019573,2]
[346963631,1735433443734,-500.0,0.00019573,2]
[346963632,1735433443744,-456.09179549,0.00019573,2]
[346963633,1735433443755,-500.0,0.00019573,2]
[346963634,1735433443765,-500.0,0.00019573,2]
[346963635,1735433443773,-500.0,0.00019573,2]
[346963636,1735433443783,-583.94,0.00019573,2]
[346963637,1735433443793,-13382.8,0.00019573,2]
[346963638,1735433443803,-500.0,0.00019573,2]
[346963639,1735433443812,-500.0,0.00019573,2]
[346963640,1735433443821,-546.39,0.00019573,2]
[346963641,1735433443830,-500.0,0.00019573,2]
[346963642,1735433443840,-500.0,0.00019573,2]
[346963643,1735433443849,-500.0,0.00019573,2]
[346963644,1735433443859,-151.0,0.00019574,2]
[346963645,1735433443868,-500.0,0.00019574,2]
[346963646,1735433443877,-756.6,0.00019574,2]
[346963647,1735433443886,-500.0,0.00019574,2]
[346963648,1735433443896,-500.0,0.00019574,2]
[346963649,1735433443906,-500.0,0.00019574,2]
[346963650,1735433443915,-500.0,0.00019574,2]
[346963651,1735433443925,-500.0,0.00019574,2]
[346963652,1735433443934,-500.0,0.00019574,2]
[346963653,1735433443944,-7021.91,0.00019575,2]
[346963654,1735433443953,-151.0,0.00019575,2]
[346963655,1735433443963,-500.0,0.00019575,2]
[346963656,1735433443972,-151.0,0.00019575,2]
[346963657,1735433443982,-151.0,0.00019575,2]
[346963658,1735433443991,-151.0,0.00019575,2]
[346963659,1735433444001,-211.572157,0.00019575,2]
[346963660,1735433444010,-6571.09,0.00019575,2]
[346963661,1735433444020,-4272.27,0.00019575,2]
[346963662,1735433444029,-151.0,0.00019575,2]
[346963663,1735433444039,-151.0,0.00019575,2]
[346963664,1735433444048,-151.0,0.00019575,2]
[346963665,1735433444057,-151.0,0.00019575,2]
[346963666,1735433444067,-916.51,0.00019575,2]
[346963667,1735433444076,-591.990534,0.00019575,2]
[346963668,1735433444085,-591.990534,0.00019575,2]
[346963669,1735433444095,-151.0,0.00019575,2]
[346963670,1735433444104,-151.0,0.00019575,2]
[346963671,1735433444114,-151.0,0.00019575,2]
[346963672,1735433444123,-500.0,0.00019575,2]
[346963673,1735433444133,-179.306546,0.00019575,2]
[346963674,1735433444142,-179.306546,0.00019575,2]
[346963675,1735433444152,-151.0,0.00019575,2]
[346963676,1735433444161,-210.233893,0.00019575,2]
[346963677,1735433444171,-210.233893,0.00019575,2]
[346963678,1735433444180,-151.0,0.00019575,2]
[346963679,1735433444189,-226.301819,0.00019575,2]
[346963680,1735433444198,-226.301819,0.00019575,2]
[346963681,1735433444207,-151.0,0.00019575,2]
[346963682,1735433444216,-680.147319,0.00019575,2]
[346963683,1735433444226,-680.147319,0.00019575,2]
[346963684,1735433444235,-151.0,0.00019575,2]
[346963685,1735433444245,-151.0,0.00019575,2]
[346963686,1735433444254,-151.0,0.00019575,2]
[346963687,1735433444265,-574.877,0.0001965,2]
[346963688,1735433444275,-210.23969101,0.00019731,2]
[346963689,1735433444284,-1684.72,0.00019846,2]
[346963690,1735433444294,-500.0,0.00019846,2]
[346963691,1735433444303,-583.58,0.00019846,2]
[346963692,1735433444313,-500.0,0.00019846,2]
[346963693,1735433444322,-500.0,0.00019846,2]
[346963694,1735433444332,-500.0,0.00019846,2]
[346963695,1735433444342,-981.54,0.00019846,2]
[346963696,1735433444351,-500.0,0.00019846,2]
[346963697,1735433444361,-759.28,0.00019846,2]
[346963698,1735433444370,-500.0,0.00019846,2]
[346963699,1735433444380,-500.0,0.00019846,2]
[346963700,1735433444391,-508.47,0.00019846,2]
[346963701,1735433444401,-500.0,0.00019847,2]
[346963702,1735433444410,-500.0,0.00019847,2]
[346963703,1735433444419,-500.0,0.00019847,2]
[346963704,1735433444428,-151.0,0.00019847,2]
[346963705,1735433444438,-500.0,0.00019847,2]
[346963706,1735433444450,-500.0,0.00019847,2]
[346963707,1735433444459,-500.0,0.00019847,2]
[346963708,1735433444469,-500.0,0.00019847,2]
[346963709,1735433444478,-500.0,0.00019847,2]
[346963710,1735433444487,-500.0,0.00019847,2]
[346963711,1735433444496,-500.0,0.00019847,2]
[346963712,1735433444505,-500.0,0.00019847,2]
[346963713,1735433444515,-500.0,0.00019847,2]
[346963714,1735433444524,-583.94,0.00019847,2]
[346963715,1735433444533,-13382.8,0.00019847,2]
[346963716,1735433444542,-500.0,0.00019847,2]
[346963717,1735433444552,-500.0,0.00019847,2]
[346963718,1735433444564,-546.39,0.00019847,2]
[346963719,1735433444574,-500.0,0.00019847,2]
[346963720,1735433444583,-500.0,0.00019847,2]
[346963721,1735433444592,-500.0,0.00019847,2]
[346963722,1735433444601,-500.0,0.00019848,2]
[346963723,1735433444610,-756.6,0.00019848,2]
[346963724,1735433444620,-500.0,0.00019848,2]
[346963725,1735433444629,-500.0,0.00019848,2]
[346963726,1735433444638,-500.0,0.00019848,2]
[346963727,1735433444648,-500.0,0.00019848,2]
[346963728,1735433444658,-500.0,0.00019848,2]
[346963729,1735433444667,-500.0,0.00019848,2]
[346963730,1735433444677,-7021.91,0.00019849,2]
[346963731,1735433444687,-151.0,0.00019849,2]
[346963732,1735433444697,-500.0,0.00019849,2]
[346963733,1735433444706,-6571.09,0.00019849,2]
[346963734,1735433444715,-4272.27,0.00019849,2]
[346963735,1735433444724,-916.51,0.00019849,2]
[346963736,1735433444734,-500.0,0.00019849,2]
[346963737,1735433444743,-500.0,0.00019991,2]
[346963738,1735433444752,-2000.0,0.0002,4]
[346963739,1735433444762,-571.8078724,0.0002002,2]
[346963740,1735433444771,-1684.72,0.0002012,2]
[346963741,1735433444781,-500.0,0.0002012,2]
[346963742,1735433444791,-583.58,0.0002012,2]
[346963743,1735433444801,-500.0,0.0002012,2]
[346963744,1735433444810,-500.0,0.0002012,2]
[346963745,1735433444819,-500.0,0.0002012,2]
[346963746,1735433444829,-981.54,0.0002012,2]
[346963747,1735433444908,-500.0,0.0002012,2]
[346963748,1735433444918,-759.28,0.0002012,2]
[346963749,1735433444928,-500.0,0.0002012,2]
[346963750,1735433444938,-508.47,0.0002012,2]
[346963751,1735433444947,-500.0,0.0002012,2]
[346963752,1735433444957,-151.0,0.00020121,2]
[346963753,1735433444967,-151.0,0.00020121,2]
[346963754,1735433444977,-152.337546,0.00020121,2]
[346963755,1735433444986,-151.0,0.00020121,2]
[346963756,1735433444996,-500.0,0.00020121,2]
[346963757,1735433445006,-500.0,0.00020121,2]
[346963758,1735433445015,-500.0,0.00020121,2]
[346963759,1735433445024,-500.0,0.00020121,2]
[346963760,1735433445034,-500.0,0.00020121,2]
[346963761,1735433445044,-500.0,0.00020121,2]
[346963762,1735433445053,-500.0,0.00020121,2]
[346963763,1735433445062,-500.0,0.00020121,2]
[346963764,1735433445072,-500.0,0.00020121,2]
[346963765,1735433445081,-500.0,0.00020121,2]
[346963766,1735433445091,-500.0,0.00020121,2]
[346963767,1735433445100,-179.306546,0.00020121,2]
[346963768,1735433445110,-500.0,0.00020121,2]
[346963769,1735433445120,-179.306546,0.00020121,2]
[346963770,1735433445129,-151.0,0.00020121,2]
[346963771,1735433445139,-210.233893,0.00020121,2]
[346963772,1735433445149,-210.233893,0.00020121,2]
[346963773,1735433445158,-151.0,0.00020121,2]
[346963774,1735433445168,-226.301819,0.00020121,2]
[346963775,1735433445178,-583.94,0.00020121,2]
[346963776,1735433445187,-13382.8,0.00020121,2]
[346963777,1735433445197,-226.301819,0.00020121,2]
[346963778,1735433445206,-151.0,0.00020121,2]
[346963779,1735433445216,-680.147319,0.00020121,2]
[346963780,1735433445225,-680.147319,0.00020121,2]
[346963781,1735433445234,-500.0,0.00020121,2]
[346963782,1735433445243,-151.0,0.00020121,2]
[346963783,1735433445252,-151.0,0.00020121,2]
[346963784,1735433445261,-500.0,0.00020121,2]
[346963785,1735433445270,-546.39,0.00020121,2]
[346963786,1735433445279,-151.0,0.00020121,2]
[346963787,1735433445289,-500.0,0.00020121,2]
[346963788,1735433445298,-500.0,0.00020121,2]
[346963789,1735433445307,-500.0,0.00020121,2]
[346963790,1735433445316,-151.0,0.00020122,2]
[346963791,1735433445325,-155.601224,0.00020122,2]
[346963792,1735433445334,-500.0,0.00020122,2]
[346963793,1735433445343,-756.6,0.00020122,2]
[346963794,1735433445353,-500.0,0.00020122,2]
[346963795,1735433445362,-500.0,0.00020122,2]
[346963796,1735433445371,-500.0,0.00020122,2]
[346963797,1735433445380,-500.0,0.00020122,2]
[346963798,1735433445389,-151.0,0.00020122,2]
[346963799,1735433445399,-151.0,0.00020122,2]
[346963800,1735433445408,-151.0,0.00020122,2]
[346963801,1735433445417,-151.0,0.00020122,2]
[346963802,1735433445427,-151.0,0.00020122,2]
[346963803,1735433445436,-591.990534,0.00020122,2]
[346963804,1735433445446,-591.990534,0.00020122,2]
[346963805,1735433445455,-151.0,0.00020122,2]
[346963806,1735433445466,-151.0,0.00020122,2]
[346963807,1735433445476,-500.0,0.00020122,2]
[346963808,1735433445485,-500.0,0.00020122,2]
[346963809,1735433445494,-7021.91,0.00020123,2]
[346963810,1735433445503,-151.0,0.00020123,2]
[346963811,1735433445512,-6571.09,0.00020123,2]
[346963812,1735433445522,-4272.27,0.00020123,2]
[346963813,1735433445531,-916.51,0.00020123,2]
[346963814,1735433445540,-427.6,0.00020123,2]
[346963815,1735433445549,-210.23969101,0.00020166,2]
[346963816,1735433445561,-3000.0,0.000202,4]
[346963817,1735433445570,-375.0,0.0002022,2]
[346963818,1735433445580,-499.0,0.00020273,2]
[346963819,1735433445589,-10574.62215329,0.00020275,2]
[346963820,1735433445599,-1684.72,0.00020394,2]
[346963821,1735433445609,-500.0,0.00020394,2]
[346963822,1735433445618,-583.58,0.00020394,2]
[346963823,1735433445628,-500.0,0.00020394,2]
[346963824,1735433445640,-500.0,0.00020394,2]
[346963825,1735433445650,-500.0,0.00020394,2]
[346963826,1735433445660,-981.54,0.00020394,2]
[346963827,1735433445670,-500.0,0.00020394,2]
[346963828,1735433445679,-759.28,0.00020394,2]
[346963829,1735433445688,-500.0,0.00020394,2]
[346963830,1735433445698,-508.47,0.00020394,2]
[346963831,1735433445708,-500.0,0.00020394,2]
[346963832,1735433445717,-500.0,0.00020395,2]
[346963833,1735433445727,-500.0,0.00020395,2]
[346963834,1735433445736,-500.0,0.00020395,2]
[346963835,1735433445746,-151.0,0.00020395,2]
[346963836,1735433445755,-589.12,0.00020395,2]
[346963837,1735433445765,-500.0,0.00020395,2]
[346963838,1735433445775,-500.0,0.00020395,2]
[346963839,1735433445785,-500.0,0.00020395,2]
[346963840,1735433445797,-500.0,0.00020395,2]
[346963841,1735433445806,-500.0,0.00020395,2]
[346963842,1735433445816,-500.0,0.00020395,2]
[346963843,1735433445826,-500.0,0.00020395,2]
[346963844,1735433445836,-500.0,0.00020395,2]
[346963845,1735433445846,-583.94,0.00020395,2]
[346963846,1735433445855,-13382.8,0.00020395,2]
[346963847,1735433445865,-500.0,0.00020395,2]
[346963848,1735433445875,-500.0,0.00020395,2]
[346963849,1735433445884,-546.39,0.00020395,2]
[346963850,1735433445894,-500.0,0.00020395,2]
[346963851,1735433445903,-500.0,0.00020395,2]
[346963852,1735433445913,-500.0,0.00020395,2]
[346963853,1735433445922,-500.0,0.00020396,2]
[346963854,1735433445932,-756.6,0.00020396,2]
[346963855,1735433445941,-500.0,0.00020396,2]
[346963856,1735433445951,-500.0,0.00020396,2]
[346963857,1735433445960,-359.72,0.00020396,2]
[346963858,1735433445970,-500.0,0.00020396,2]
[346963859,1735433445980,-500.0,0.00020396,2]
[346963860,1735433445989,-500.0,0.00020396,2]
[346963861,1735433445998,-7021.91,0.00020397,2]
[346963862,1735433446008,-151.0,0.00020397,2]
[346963863,1735433446017,-6571.09,0.00020397,2]
[346963864,1735433446027,-4272.27,0.00020397,2]
[346963866,1735433446037,-916.51,0.00020397,2]
[346963867,1735433446046,-179.306546,0.00020397,2]
[346963868,1735433446056,-179.306546,0.00020397,2]
[346963869,1735433446065,-210.233893,0.00020397,2]
[346963870,1735433446075,-210.233893,0.00020397,2]
[346963871,1735433446084,-226.301819,0.00020397,2]
[346963872,1735433446094,-226.301819,0.00020397,2]
[346963873,1735433446103,-151.0,0.00020397,2]
[346963874,1735433446113,-680.147319,0.00020397,2]
[346963875,1735433446122,-680.147319,0.00020397,2]
[346963876,1735433446131,-151.0,0.00020397,2]
[346963877,1735433446141,-151.0,0.00020397,2]
[346963878,1735433446151,-151.0,0.00020397,2]
[346963879,1735433446160,-151.0,0.00020398,2]
[346963880,1735433446170,-151.0,0.00020398,2]
[346963881,1735433446180,-591.990534,0.00020418,2]
[346963882,1735433446189,-591.990534,0.00020418,2]
[346963883,1735433446199,-151.0,0.00020418,2]
[346963884,1735433446208,-400.0,0.00020447,2]
[346963885,1735433446218,-233.6640289,0.00020474,2]
[346963886,1735433446228,-650.577243,0.00020521,2]
[346963887,1735433446237,-530.90342573,0.00020539,2]
[346963888,1735433446247,-151.0,0.00020581,2]
[346963889,1735433446256,-161.11401,0.00020581,2]
[346963890,1735433446265,-151.0,0.00020581,2]
[346963891,1735433446275,-151.0,0.00020581,2]
[346963892,1735433446284,-151.0,0.00020581,2]
[346963893,1735433446294,-666.0,0.00020581,2]
[346963894,1735433446303,-210.23969101,0.00020601,2]
[346963895,1735433446313,-1684.72,0.00020668,2]
[346963896,1735433446322,-500.0,0.00020668,2]
[346963897,1735433446331,-583.58,0.00020668,2]
[346963898,1735433446341,-500.0,0.00020668,2]
[346963899,1735433446351,-500.0,0.00020668,2]
[346963900,1735433446360,-500.0,0.00020668,2]
[346963901,1735433446369,-981.54,0.00020668,2]
[346963902,1735433446379,-759.28,0.00020668,2]
[346963903,1735433446389,-508.47,0.00020668,2]
[346963904,1735433446399,-500.0,0.00020669,2]
[346963905,1735433446408,-500.0,0.00020669,2]
[346963906,1735433446417,-151.0,0.00020669,2]
[346963907,1735433446426,-500.0,0.00020669,2]
[346963908,1735433446435,-155.1,0.00020669,2]
[346963909,1735433446446,-500.0,0.00020669,2]
[346963910,1735433446455,-500.0,0.00020669,2]
[346963911,1735433446465,-500.0,0.00020669,2]
[346963912,1735433446474,-500.0,0.00020669,2]
[346963913,1735433446483,-583.94,0.00020669,2]
[346963914,1735433446493,-13382.8,0.00020669,2]
[346963915,1735433446567,-157.21,0.00020669,2]
[346963916,1735433446577,-500.0,0.00020669,2]
[346963917,1735433446586,-546.39,0.00020669,2]
[346963918,1735433446595,-500.0,0.00020669,2]
[346963919,1735433446605,-151.0,0.0002067,2]
[346963920,1735433446614,-756.6,0.0002067,2]
[346963921,1735433446623,-500.0,0.0002067,2]
[346963922,1735433446633,-204.63,0.0002067,2]
[346963923,1735433446643,-500.0,0.0002067,2]
[346963924,1735433446651,-500.0,0.0002067,2]
[346963925,1735433446661,-500.0,0.0002067,2]
[346963926,1735433446670,-7021.91,0.00020671,2]
[346963927,1735433446680,-151.0,0.00020671,2]
[346963928,1735433446689,-6571.09,0.00020671,2]
[346963929,1735433446699,-4272.27,0.00020671,2]
[346963930,1735433446708,-916.51,0.00020671,2]
[346963931,1735433446717,-249.44329659,0.00020681,2]
[346963932,1735433446727,-151.0,0.00020681,2]
[346963933,1735433446736,-151.0,0.00020681,2]
[346963934,1735433446746,-500.0,0.00020681,2]
[346963935,1735433446755,-500.0,0.00020681,2]
[346963936,1735433446764,-151.0,0.00020681,2]
[346963937,1735433446774,-151.0,0.00020681,2]
[346963938,1735433446783,-591.990534,0.00020681,2]
[346963939,1735433446793,-591.990534,0.00020681,2]
[346963940,1735433446802,-151.0,0.00020681,2]
[346963941,1735433446812,-500.0,0.00020681,2]
[346963942,1735433446821,-150.24,0.00020681,2]
[346963943,1735433446830,-150.24,0.00020681,2]
[346963944,1735433446840,-500.0,0.00020681,2]
[346963945,1735433446849,-500.0,0.00020681,2]
[346963946,1735433446858,-500.0,0.00020681,2]
[346963947,1735433446867,-150.24,0.00020681,2]
[346963948,1735433446877,-251.29406444,0.00020681,2]
[346963949,1735433446887,-150.24,0.00020681,2]
[346963950,1735433446896,-788.2896888,0.00020685,2]
[346963951,1735433446906,-151.0,0.00020695,2]
[346963952,1735433446915,-151.0,0.00020695,2]
[346963953,1735433446926,-151.0,0.00020695,2]
[346963954,1735433446935,-153.098102,0.00020695,2]
[346963955,1735433446945,-151.0,0.00020695,2]
[346963956,1735433446954,-151.0,0.00020695,2]
[346963957,1735433446963,-179.306546,0.00020695,2]
[346963958,1735433446972,-179.306546,0.00020695,2]
[346963959,1735433446981,-210.233893,0.00020695,2]
[346963960,1735433446991,-210.233893,0.00020695,2]
[346963961,1735433447000,-226.301819,0.00020695,2]
[346963962,1735433447009,-226.301819,0.00020695,2]
[346963963,1735433447020,-151.0,0.00020695,2]
[346963964,1735433447029,-680.147319,0.00020695,2]
[346963965,1735433447038,-680.147319,0.00020695,2]
[346963966,1735433447048,-151.0,0.00020695,2]
[346963967,1735433447057,-7147.69,0.000207,2]